bitfinex-derivatives/quotes_BTCF0:USTF0_20250930
["timestamp","ask_amount","ask_price","bid_price","bid_amount"]
[1759194395058,1.29863915,114440.0,114430.0,0.75533054]
[1759194395251,1.29303915,114440.0,114430.0,0.74202054]
[1759194395860,0.46639915,114440.0,114430.0,0.74202054]
[1759194396058,1.29295915,114440.0,114430.0,0.74202054]
[1759194396360,0.37907565,114440.0,114430.0,0.75533054]
[1759194396555,0.07006111,114440.0,114430.0,1.20228378]
[1759194396860,0.07006111,114440.0,114430.0,2.30080832]
[1759194397158,1.22208144,114460.0,114450.0,0.1092008]
[1759194397349,0.97006194,114460.0,114450.0,0.74200534]
[1759194397547,1.24206648,114460.0,114450.0,0.74200534]
[1759194397751,1.24246648,114460.0,114450.0,0.74200534]
[1759194398252,1.24246648,114460.0,114450.0,0.65469454]
[1759194398452,1.51447102,114460.0,114450.0,0.38269]
[1759194398654,1.52337982,114460.0,114450.0,0.38269]
[1759194398954,0.99137074,114460.0,114450.0,0.4700008]
[1759194399156,0.34954838,114460.0,114450.0,0.74200534]
[1759194399351,1.17590838,114460.0,114450.0,0.75461534]
[1759194399755,1.16390838,114460.0,114450.0,0.74200534]
[1759194400260,0.33754838,114460.0,114450.0,0.74200534]
[1759194400460,1.16386838,114460.0,114450.0,0.74200534]
[1759194400860,0.02038504,114460.0,114450.0,0.75461534]
[1759194401162,0.30981454,114470.0,114460.0,0.1091931]
[1759194401460,1.15523945,114470.0,114460.0,0.74199764]
[1759194401863,1.15563945,114470.0,114460.0,0.74199764]
[1759194402661,1.17063654,114470.0,114460.0,0.74199764]
[1759194402866,1.17063654,114470.0,114460.0,0.4699931]
[1759194403159,1.13683454,114470.0,114460.0,0.75150764]
[1759194403359,1.13683454,114470.0,114460.0,0.4795031]
[1759194403360,1.12183454,114470.0,114460.0,0.4795031]
[1759194403554,1.13557454,114470.0,114460.0,0.4699931]
[1759194403754,1.13549454,114470.0,114460.0,0.74199764]
[1759194403961,0.86349,114470.0,114460.0,0.74199764]
[1759194404160,1.13549454,114470.0,114460.0,0.74199764]
[1759194404560,1.15546513,114470.0,114460.0,0.74199764]
[1759194405660,0.88346059,114470.0,114460.0,0.74199764]
[1759194405961,1.15546513,114470.0,114460.0,0.74199764]
[1759194406164,1.22504512,114470.0,114460.0,0.74199764]
[1759194406361,0.95304058,114470.0,114460.0,0.4699931]
[1759194406558,0.11322058,114470.0,114460.0,0.4795031]
[1759194406764,0.11322058,114470.0,114460.0,0.7515241]
[1759194407071,0.08955058,114470.0,114460.0,1.1515241]
[1759194407360,0.08995058,114470.0,114460.0,1.1515241]
[1759194407758,0.11322058,114470.0,114460.0,0.8699931]
[1759194407957,0.12656058,114470.0,114460.0,1.9678141]
[1759194408154,0.12696058,114470.0,114460.0,1.9678141]
[1759194408557,0.12696058,114470.0,114460.0,1.1420141]
[1759194408758,0.21425608,114470.0,114460.0,1.1420141]
[1759194408964,0.21425608,114470.0,114460.0,1.9677741]
[1759194409655,0.21425608,114470.0,114460.0,1.9676941]
[1759194409861,0.48627708,114470.0,114460.0,1.20837]
[1759194410164,0.48627708,114470.0,114460.0,0.38269]
[1759194410964,0.48627708,114470.0,114460.0,0.4699931]
[1759194412065,0.48627708,114470.0,114460.0,0.38269]
[1759194412668,0.48627708,114470.0,114460.0,0.4699931]
[1759194413765,0.12696058,114470.0,114460.0,0.4699931]
[1759194413967,0.11282058,114470.0,114460.0,0.4795031]
[1759194414262,0.11322058,114470.0,114460.0,0.7515241]
[1759194414454,0.11282058,114470.0,114460.0,0.7515241]
[1759194414652,0.09324999,114470.0,114460.0,0.7515241]
[1759194415261,0.06997999,114470.0,114460.0,1.1515241]
[1759194415561,0.06957999,114470.0,114460.0,1.1515241]
[1759194415756,0.02347,114480.0,114470.0,0.1215546]
[1759194415957,0.11262917,114480.0,114470.0,0.7543756]
[1759194416165,0.19991707,114480.0,114470.0,0.7543756]
[1759194416353,0.19991707,114480.0,114470.0,0.667081]
[1759194417064,0.19991707,114480.0,114470.0,0.39506]
[1759194417264,0.21791707,114480.0,114470.0,0.39506]
[1759194417460,0.21791707,114480.0,114470.0,0.4823555]
[1759194417760,0.19991707,114480.0,114470.0,0.7543765]
[1759194418067,0.19911707,114480.0,114470.0,0.7543765]
[1759194418263,0.19951707,114480.0,114470.0,0.7543765]
[1759194418565,0.19951707,114480.0,114470.0,0.4823555]
[1759194419266,0.21219707,114480.0,114470.0,0.4823555]
[1759194420261,0.12490917,114480.0,114470.0,0.4823555]
[1759194420468,0.19951707,114480.0,114470.0,0.4823555]
[1759194421667,0.0922878,114480.0,114470.0,0.4823555]
[1759194422660,0.0696178,114480.0,114470.0,0.7543765]
[1759194422967,0.0692178,114480.0,114470.0,0.7543765]
[1759194423164,0.1099546,114490.0,114480.0,0.1179479]
[1759194423364,0.13077575,114490.0,114480.0,0.7507689]
[1759194423564,0.12997575,114490.0,114480.0,0.7507689]
[1759194423765,0.14305575,114490.0,114480.0,0.4695579]
[1759194424267,0.41507675,114490.0,114480.0,0.4695579]
[1759194424468,0.43407675,114490.0,114480.0,0.4695579]
[1759194424669,0.50316982,114490.0,114480.0,0.4695579]
[1759194424864,0.48416982,114490.0,114480.0,0.4695579]
[1759194425772,0.49304203,114490.0,114480.0,0.4695579]
[1759194425971,0.48416982,114490.0,114480.0,0.4695579]
[1759194427171,0.21214882,114490.0,114480.0,0.4695579]
[1759194427976,0.22414882,114490.0,114480.0,0.4695579]
[1759194428271,0.21214882,114490.0,114480.0,0.4695579]
[1759194430672,0.21214882,114490.0,114480.0,0.38227]
[1759194432272,0.21214882,114490.0,114480.0,0.4695579]
[1759194432568,0.19946882,114490.0,114480.0,0.4787479]
[1759194432871,0.08951422,114490.0,114480.0,0.7507689]
[1759194433060,0.08911422,114490.0,114480.0,0.7507689]
[1759194433265,0.08951422,114490.0,114480.0,0.7507689]
[1759194433467,0.08911422,114490.0,114480.0,1.1507689]
[1759194433668,0.06909307,114490.0,114480.0,1.1507689]
[1759194433973,0.0004,114490.0,114480.0,1.46964519]
[1759194434673,0.0880771,114500.0,114490.0,0.1213603]
[1759194434868,0.10812036,114500.0,114490.0,0.7541813]
[1759194435067,0.10732036,114500.0,114490.0,0.7541813]
[1759194435370,0.1106871,114500.0,114490.0,0.7541813]
[1759194435769,0.0876771,114500.0,114490.0,1.5783813]
[1759194436269,0.1026771,114500.0,114490.0,1.5783813]
[1759194436663,0.0004,114500.0,114490.0,1.5783813]
[1759194436965,0.08727,114510.0,114500.0,0.0872727]
[1759194437170,0.13111121,114510.0,114500.0,0.7511237]
[1759194437367,0.10810121,114510.0,114500.0,0.7511237]
[1759194437572,0.17690298,114510.0,114500.0,0.7511237]
[1759194437969,0.17610298,114510.0,114500.0,0.7511237]
[1759194438171,0.17650298,114510.0,114500.0,0.7511237]
[1759194438372,0.21751298,114510.0,114500.0,0.7511237]
[1759194438669,0.10723298,114510.0,114500.0,0.7511237]
[1759194438875,0.08720177,114510.0,114500.0,0.7511237]
[1759194439078,0.06920177,114510.0,114500.0,0.7511237]
[1759194440172,0.17962687,114510.0,114500.0,1.3030227]
[1759194440379,0.17962687,114510.0,114500.0,1.5749637]
[1759194440675,0.19275687,114510.0,114500.0,1.5749637]
[1759194442277,0.17962687,114510.0,114500.0,1.5749637]
[1759194444676,0.19962757,114510.0,114500.0,1.5749637]
[1759194446582,0.11236247,114510.0,114500.0,1.5749637]
[1759194447074,0.19962757,114510.0,114500.0,1.5718637]
[1759194447882,0.19962757,114510.0,114500.0,0.7480237]
[1759194448183,0.19962757,114510.0,114500.0,1.5714237]
[1759194449684,0.21275757,114510.0,114500.0,1.5714237]
[1759194450883,0.21275757,114510.0,114500.0,1.5712237]
[1759194451285,0.21275757,114510.0,114500.0,0.7480237]
[1759194451679,0.21275757,114510.0,114500.0,1.5711437]
[1759194452079,0.22775757,114510.0,114500.0,1.5615937]
[1759194452487,0.21275757,114510.0,114500.0,0.7385137]
[1759194452685,0.21275757,114510.0,114500.0,1.5615937]
[1759194453679,0.21275757,114510.0,114500.0,1.5615537]
[1759194454286,0.11236247,114510.0,114500.0,1.5710637]
[1759194454479,0.19962747,114510.0,114500.0,1.5710637]
[1759194454687,0.21275747,114510.0,114500.0,1.5710637]
[1759194456185,0.19962747,114510.0,114500.0,1.5710637]
[1759194456386,0.21275747,114510.0,114500.0,1.2895327]
[1759194456587,0.21275747,114510.0,114500.0,1.5615537]
[1759194457996,0.21275747,114510.0,114500.0,1.5710637]
[1759194458193,0.19962747,114510.0,114500.0,1.5710637]
[1759194458597,0.11236247,114510.0,114500.0,1.5710637]
[1759194458991,0.08880247,114510.0,114500.0,1.5710637]
[1759194459296,0.08920247,114510.0,114500.0,1.5710637]
[1759194459486,0.08920247,114510.0,114500.0,1.9710637]
[1759194459487,0.06880177,114510.0,114500.0,1.9710637]
[1759194459691,0.0004,114510.0,114500.0,1.9710637]
[1759194460093,0.1104146,114530.0,114520.0,0.1223874]
[1759194460299,0.12272467,114530.0,114520.0,0.7552084]
[1759194460695,0.12312467,114530.0,114520.0,0.7552084]
[1759194460898,0.12312467,114530.0,114520.0,1.5778084]
[1759194462699,0.14212467,114530.0,114520.0,1.5778084]
[1759194463502,0.13352152,114530.0,114520.0,1.5778084]
[1759194463696,0.09136152,114530.0,114520.0,1.5778084]
[1759194463999,0.09096152,114530.0,114520.0,1.5778084]
[1759194464300,0.09136152,114530.0,114520.0,1.5778084]
[1759194465203,0.09136152,114530.0,114520.0,0.7552084]
[1759194465496,0.11452152,114530.0,114520.0,0.7552084]
[1759194465700,0.11452152,114530.0,114520.0,1.5775284]
[1759194465900,0.11452152,114530.0,114520.0,1.5774884]
[1759194466704,0.09136152,114530.0,114520.0,1.5774484]
[1759194467000,0.20177132,114530.0,114520.0,1.5774484]
[1759194468003,0.20177132,114530.0,114520.0,0.7552084]
[1759194468305,0.20177132,114530.0,114520.0,1.84883322]
[1759194469002,0.20177132,114530.0,114520.0,1.02663322]
[1759194469193,0.21553132,114530.0,114520.0,0.74212031]
[1759194469390,0.48725423,114530.0,114520.0,1.56420031]
[1759194469689,0.21553132,114530.0,114520.0,1.56420031]
[1759194469900,0.48725423,114530.0,114520.0,1.56420031]
[1759194470300,0.21553132,114530.0,114520.0,1.56416031]
[1759194470494,0.48725423,114530.0,114520.0,1.56416031]
[1759194471095,0.48725423,114530.0,114520.0,1.56412031]
[1759194471402,0.21553132,114530.0,114520.0,1.56412031]
[1759194471603,0.21553132,114530.0,114520.0,1.84863322]
[1759194471604,0.11452152,114530.0,114520.0,1.84863322]
[1759194472502,0.20177132,114530.0,114520.0,1.02663322]
[1759194472802,0.21553132,114530.0,114520.0,1.74846582]
[1759194472994,0.22753132,114530.0,114520.0,1.74846582]
[1759194473199,0.22753132,114530.0,114520.0,1.01384322]
[1759194473400,0.49925423,114530.0,114520.0,1.83568322]
[1759194473916,0.49925423,114530.0,114520.0,1.01384322]
[1759194473917,0.48725423,114530.0,114520.0,1.01384322]
[1759194474097,0.48725423,114530.0,114520.0,1.83568322]
[1759194474495,0.48725423,114530.0,114520.0,1.56396031]
[1759194474903,0.48725423,114530.0,114520.0,0.4703974]
[1759194475100,0.48725423,114530.0,114520.0,1.2049]
[1759194475297,0.48725423,114530.0,114520.0,0.38314]
[1759194475597,0.1235474,114520.0,114510.0,0.38189]
[1759194475905,0.68698053,114520.0,114510.0,0.38189]
[1759194477105,0.69598053,114520.0,114510.0,0.38189]
[1759194477503,0.68698053,114520.0,114510.0,0.38189]
[1759194478299,0.123555,114510.0,114500.0,0.38189]
[1759194478507,0.41526522,114510.0,114500.0,0.38189]
[1759194479007,0.41526522,114510.0,114500.0,0.65361291]
[1759194479806,0.42126522,114510.0,114500.0,0.65361291]
[1759194480308,0.41526522,114510.0,114500.0,0.65361291]
[1759194482005,0.14354231,114510.0,114500.0,0.38189]
[1759194482307,0.41526522,114510.0,114500.0,0.65361291]
[1759194484700,0.41526522,114510.0,114500.0,0.38189]
[1759194484904,0.41526522,114510.0,114500.0,0.74088561]
[1759194488012,0.41526522,114510.0,114500.0,0.4691627]
[1759194488214,0.41526522,114510.0,114500.0,0.74088561]
[1759194489311,0.14354231,114510.0,114500.0,0.74088561]
[1759194489514,0.14354231,114510.0,114500.0,0.4691627]
[1759194489715,0.41526522,114510.0,114500.0,0.74088561]
[1759194490913,0.14354231,114510.0,114500.0,0.74088561]
[1759194491219,0.41526522,114510.0,114500.0,0.74088561]
[1759194492816,0.41526522,114510.0,114500.0,0.75007561]
[1759194493210,0.41526522,114510.0,114500.0,0.74088561]
[1759194493720,0.14354231,114510.0,114500.0,0.65361291]
[1759194493912,0.41526522,114510.0,114500.0,0.65361291]
[1759194494619,0.14354231,114510.0,114500.0,0.74088551]
[1759194494922,0.41526522,114510.0,114500.0,0.74088551]
[1759194495118,0.31424022,114510.0,114500.0,1.02179842]
[1759194495325,0.40150522,114510.0,114500.0,1.02179842]
[1759194495624,0.40150522,114510.0,114500.0,0.75007551]
[1759194496023,0.12978231,114510.0,114500.0,0.75007551]
[1759194496217,0.40150522,114510.0,114500.0,0.75007551]
[1759194496417,0.01998731,114510.0,114500.0,1.02179842]
[1759194496724,0.01998731,114510.0,114500.0,1.69352133]
[1759194496725,0.0004,114510.0,114500.0,1.69352133]
[1759194496922,0.0004,114510.0,114500.0,1.74037662]
[1759194497120,0.09304421,114530.0,114520.0,0.1230474]
[1759194497325,0.11303375,114530.0,114520.0,1.38809322]
[1759194497821,0.09096375,114530.0,114520.0,1.78809322]
[1759194498021,0.01998954,114530.0,114520.0,2.05981613]
[1759194498222,0.0004,114530.0,114520.0,2.05981613]
[1759194498430,0.75158581,114560.0,114550.0,0.02198]
[1759194498621,0.77156881,114560.0,114550.0,0.65450291]
[1759194498926,0.73380463,114560.0,114550.0,0.65450291]
[1759194499118,0.5247895,114560.0,114550.0,0.65450291]
[1759194499325,0.48449348,114560.0,114550.0,0.74173751]
[1759194499526,0.19953057,114560.0,114550.0,0.75124751]
[1759194499726,0.47125348,114560.0,114550.0,0.75124751]
[1759194499924,0.49385477,114560.0,114550.0,0.65450291]
[1759194501225,0.50585477,114560.0,114550.0,0.74173751]
[1759194501528,0.11229787,114560.0,114550.0,0.75124751]
[1759194501724,0.08944787,114560.0,114550.0,0.75124751]
[1759194502031,0.06906487,114560.0,114550.0,1.42297042]
[1759194502324,0.0004,114560.0,114550.0,1.97184751]
[1759194503024,0.06926952,114560.0,114550.0,1.97184751]
[1759194503218,0.06926952,114560.0,114550.0,1.15124751]
[1759194503423,0.06926952,114560.0,114550.0,1.97172751]
[1759194503727,0.07526952,114560.0,114550.0,1.97172751]
[1759194504230,0.06926952,114560.0,114550.0,1.97172751]
[1759194504930,0.06926952,114560.0,114550.0,2.24345042]
[1759194505130,0.0004,114560.0,114550.0,2.24345042]
[1759194505628,0.39502151,114590.0,114580.0,0.1091917]
[1759194505828,0.41493481,114590.0,114580.0,0.75432461]
[1759194506432,0.41533481,114590.0,114580.0,0.75432461]
[1759194506831,0.48349576,114590.0,114580.0,0.75432461]
[1759194507433,0.47858246,114590.0,114580.0,0.66711291]
[1759194507628,0.46358246,114590.0,114580.0,0.65450291]
[1759194508528,0.46358246,114590.0,114580.0,0.66711291]
[1759194508529,0.47228511,114590.0,114580.0,0.66711291]
[1759194508827,0.1001136,114590.0,114580.0,1.02604752]
[1759194509035,0.06816095,114590.0,114580.0,1.02604752]
[1759194509333,0.06816095,114590.0,114580.0,1.69777043]
[1759194509334,0.0004,114590.0,114580.0,1.69777043]
[1759194509521,0.1100403,114610.0,114600.0,0.03149]
[1759194509725,0.46021707,114610.0,114600.0,0.66401291]
[1759194509921,0.47414707,114610.0,114600.0,0.66401291]
[1759194510137,0.20242416,114610.0,114600.0,0.66401291]
[1759194510330,0.47454707,114610.0,114600.0,0.66401291]
[1759194510634,0.47454707,114610.0,114600.0,0.39229]
[1759194510932,0.49354707,114610.0,114600.0,0.66401291]
[1759194511335,0.47454707,114610.0,114600.0,0.66401291]
[1759194511731,0.20282416,114610.0,114600.0,0.66401291]
[1759194512034,0.47454707,114610.0,114600.0,0.66401291]
[1759194512928,0.20282416,114610.0,114600.0,0.66401291]
[1759194513123,0.47454707,114610.0,114600.0,0.66401291]
[1759194514239,0.47454707,114610.0,114600.0,0.75120941]
[1759194514531,0.07019491,114610.0,114600.0,1.02293232]
[1759194517038,0.06979491,114610.0,114600.0,1.02293232]
[1759194517336,0.0004,114610.0,114600.0,1.02293232]
[1759194517937,0.0004,114610.0,114600.0,1.42293232]
[1759194518633,0.123966,114620.0,114610.0,0.02198]
[1759194518837,0.1239613,114620.0,114610.0,1.47394291]
[1759194519028,0.1247613,114620.0,114610.0,0.74169181]
[1759194519233,0.1247613,114620.0,114610.0,1.47390291]
[1759194519835,0.19425026,114620.0,114610.0,1.47390291]
[1759194520640,0.21325026,114620.0,114610.0,1.47390291]
[1759194520840,0.21325026,114620.0,114610.0,0.65450291]
[1759194521141,0.19425026,114620.0,114610.0,1.47378291]
[1759194521638,0.19425026,114620.0,114610.0,1.2892484]
[1759194521838,0.19425026,114620.0,114610.0,1.57376131]
[1759194522044,0.09313896,114620.0,114610.0,1.84548422]
[1759194522237,0.18031976,114620.0,114610.0,1.57376131]
[1759194522736,0.18031976,114620.0,114610.0,1.3020384]
[1759194522940,0.19424976,114620.0,114610.0,1.57376131]
[1759194524639,0.19424976,114620.0,114610.0,1.3020384]
[1759194524840,0.07028896,114620.0,114610.0,1.57376131]
[1759194525041,0.07028896,114620.0,114610.0,1.84548422]
[1759194525342,0.07028896,114620.0,114610.0,1.02620422]
[1759194525642,0.06948896,114620.0,114610.0,1.84520422]
[1759194525942,0.0004,114620.0,114610.0,1.84520422]
[1759194527542,0.1021813,114620.0,114610.0,1.84520422]
[1759194527943,0.1025813,114620.0,114610.0,1.02620422]
[1759194528138,0.1025813,114620.0,114610.0,1.84504422]
[1759194528644,0.0875813,114620.0,114610.0,1.84504422]
[1759194529350,0.0004,114620.0,114610.0,1.84504422]
[1759194529946,0.0875813,114620.0,114610.0,1.84504422]
[1759194530243,0.0875813,114620.0,114610.0,1.57285579]
[1759194531145,0.0004,114620.0,114610.0,1.57285579]
[1759194531740,0.0875813,114620.0,114610.0,1.57285579]
[1759194532048,0.1105113,114620.0,114610.0,1.57269579]
[1759194532247,0.1105113,114620.0,114610.0,0.75401579]
[1759194532544,0.1238413,114620.0,114610.0,0.38278]
[1759194532749,0.4150286,114620.0,114610.0,1.20134]
[1759194532944,0.14377121,114620.0,114610.0,1.2885289]
[1759194533346,0.05658991,114620.0,114610.0,1.55978629]
[1759194533744,0.02032991,114620.0,114610.0,1.57257629]
[1759194533941,0.01992991,114620.0,114610.0,1.57257629]
[1759194534343,0.02032991,114620.0,114610.0,1.57257629]
[1759194534545,0.01992991,114620.0,114610.0,1.57257629]
[1759194534739,0.02032991,114620.0,114610.0,1.57257629]
[1759194535252,0.10751121,114620.0,114610.0,1.57257629]
[1759194535447,0.10751121,114620.0,114610.0,0.75401629]
[1759194535647,0.13044121,114620.0,114610.0,1.57249629]
[1759194535844,0.10751121,114620.0,114610.0,1.57249629]
[1759194539651,0.13044121,114620.0,114610.0,0.65403739]
[1759194539854,0.14377121,114620.0,114610.0,1.47223739]
[1759194540259,0.14377121,114620.0,114610.0,1.55942629]
[1759194540854,0.04325991,114620.0,114610.0,1.57221629]
[1759194541053,0.13044121,114620.0,114610.0,1.57221629]
[1759194541762,0.13044121,114620.0,114610.0,1.3009589]
[1759194541971,0.10751121,114620.0,114610.0,1.57221629]
[1759194542764,0.02032991,114620.0,114610.0,1.57221629]
[1759194544652,0.05171399,114620.0,114610.0,1.57221629]
[1759194545256,0.13889529,114620.0,114610.0,1.57221629]
[1759194545657,0.13889529,114620.0,114610.0,0.75401629]
[1759194545866,0.13889529,114620.0,114610.0,1.57193629]
[1759194548670,0.16182529,114620.0,114610.0,1.57181629]
[1759194548967,0.13889529,114620.0,114610.0,1.57181629]
[1759194550057,0.18597141,114620.0,114610.0,1.57181629]
[1759194552366,0.13889529,114620.0,114610.0,1.57181629]
[1759194552566,0.16689529,114620.0,114610.0,1.57181629]
[1759194553163,0.23690141,114620.0,114610.0,0.66682739]
[1759194553365,0.23690141,114620.0,114610.0,1.57161629]
[1759194553759,0.23690141,114620.0,114610.0,0.75401629]
[1759194553961,0.23690141,114620.0,114610.0,1.57149629]
[1759194554267,0.23690141,114620.0,114610.0,0.75401629]
[1759194554470,0.25023141,114620.0,114610.0,1.57149629]
[1759194554766,0.07125991,114620.0,114610.0,1.57149629]
[1759194555565,0.04832991,114620.0,114610.0,1.57149629]
[1759194556871,0.04832991,114620.0,114610.0,1.61835158]
[1759194557166,0.13551121,114620.0,114610.0,0.80087158]
[1759194557463,0.1351135,114620.0,114610.0,1.61819158]
[1759194557668,0.1355135,114620.0,114610.0,1.61819158]
[1759194558272,0.1155813,114620.0,114610.0,1.61819158]
[1759194559267,0.0284,114620.0,114610.0,1.61819158]
[1759194559477,0.028,114620.0,114610.0,2.01819158]
[1759194559671,0.0284,114620.0,114610.0,2.01819158]
[1759194560171,0.0284,114620.0,114610.0,2.01807158]
[1759194561067,0.0004,114620.0,114610.0,2.01807158]
[1759194561264,0.0064,114620.0,114610.0,2.01807158]
[1759194561567,0.0004,114620.0,114610.0,2.01807158]
[1759194561768,0.0114,114620.0,114610.0,1.20087158]
[1759194561968,0.011,114620.0,114610.0,2.01795158]
[1759194562171,0.15896445,114640.0,114630.0,0.1201837]
[1759194562370,0.17889187,114640.0,114630.0,1.56932109]
[1759194562671,0.20163187,114640.0,114630.0,0.66506739]
[1759194562873,0.21558187,114640.0,114630.0,1.56928109]
[1759194563376,0.24358187,114640.0,114630.0,1.56928109]
[1759194563675,0.25158187,114640.0,114630.0,1.55848109]
[1759194564075,0.25158187,114640.0,114630.0,1.55844109]
[1759194564470,0.25158187,114640.0,114630.0,0.74144109]
[1759194564976,0.25158187,114640.0,114630.0,1.55836109]
[1759194566078,0.25158187,114640.0,114630.0,0.74144109]
[1759194566279,0.25158187,114640.0,114630.0,1.55832109]
[1759194566575,0.25158187,114640.0,114630.0,1.55828109]
[1759194566969,0.25158187,114640.0,114630.0,0.74144109]
[1759194567167,0.25158187,114640.0,114630.0,0.65426739]
[1759194567374,0.25158187,114640.0,114630.0,1.47106739]
[1759194568581,0.25158187,114640.0,114630.0,1.55824109]
[1759194569577,0.65158187,114640.0,114630.0,1.19973]
[1759194570177,0.65158187,114640.0,114630.0,1.47098739]
[1759194571776,0.65158187,114640.0,114630.0,1.47094739]
[1759194573275,0.05672742,114640.0,114630.0,1.82937848]
[1759194573481,0.05672742,114640.0,114630.0,2.63703377]
[1759194573482,0.036,114640.0,114630.0,2.63703377]
[1759194573682,0.03599089,114640.0,114630.0,2.63703377]
[1759194573882,0.03599089,114640.0,114630.0,2.63680355]
[1759194574083,0.03559089,114640.0,114630.0,2.63680355]
[1759194574579,0.03599089,114640.0,114630.0,2.63680355]
[1759194574977,0.01395,114670.0,114630.0,2.63680355]
[1759194575174,0.05815329,114670.0,114660.0,0.27125739]
[1759194575373,0.05815329,114670.0,114660.0,0.99046568]
[1759194575682,0.05655329,114670.0,114660.0,0.99046568]
[1759194575877,0.05695329,114670.0,114660.0,0.99046568]
[1759194576185,0.05695329,114670.0,114660.0,0.63205739]
[1759194576381,0.07595329,114670.0,114660.0,0.63205739]
[1759194576578,0.16309659,114670.0,114660.0,0.63205739]
[1759194576882,0.14409659,114670.0,114660.0,0.63205739]
[1759194577378,0.15276869,114670.0,114660.0,0.3608]
[1759194577575,0.1238409,114660.0,114650.0,0.981]
[1759194577777,0.1238409,114660.0,114650.0,1.25225739]
[1759194578481,0.1238409,114660.0,114650.0,0.981]
[1759194578685,0.1238409,114660.0,114650.0,1.25225739]
[1759194579780,0.1238409,114660.0,114650.0,1.33941589]
[1759194580680,0.09240406,114670.0,114660.0,0.0871509]
[1759194580681,0.1242359,114670.0,114660.0,0.0871509]
[1759194580978,0.1238359,114670.0,114660.0,0.71920829]
[1759194581182,0.1242359,114670.0,114660.0,0.63205739]
[1759194581684,0.03709,114670.0,114660.0,0.71920829]
[1759194581985,0.1242333,114670.0,114660.0,0.71920829]
[1759194582187,0.03709,114670.0,114660.0,0.71920829]
[1759194582386,0.1242333,114670.0,114660.0,0.72320829]
[1759194583185,0.1242333,114670.0,114660.0,0.72020829]
[1759194584389,0.1242333,114670.0,114660.0,0.63305739]
[1759194584589,0.14404348,114670.0,114660.0,0.3618]
[1759194584784,0.14404348,114670.0,114660.0,0.63305739]
[1759194585184,0.14404348,114670.0,114660.0,0.3618]
[1759194585380,0.54404348,114670.0,114660.0,0.3618]
[1759194586388,0.54404348,114670.0,114660.0,0.001]
[1759194586585,0.8242304,114670.0,114660.0,0.001]
[1759194586885,1.1850304,114670.0,114660.0,0.001]
[1759194587082,0.94515709,114670.0,114660.0,0.001]
[1759194587282,1.21641448,114670.0,114660.0,0.001]
[1759194588177,0.0871585,114650.0,114640.0,0.63205739]
[1759194588384,0.14149868,114650.0,114640.0,0.63205739]
[1759194588585,0.14149868,114650.0,114640.0,0.3608]
[1759194588888,1.66010015,114650.0,114640.0,0.3608]
[1759194589684,0.0871661,114640.0,114630.0,0.71923089]
[1759194589885,0.14150628,114640.0,114630.0,0.71923089]
[1759194590092,0.87030018,114640.0,114630.0,0.71923089]
[1759194590291,1.14153321,114640.0,114630.0,0.71920653]
[1759194590693,0.87030018,114640.0,114630.0,0.71920653]
[1759194590990,0.12377516,114640.0,114630.0,0.71920653]
[1759194591192,0.93973516,114640.0,114630.0,0.71920653]
[1759194591492,0.12377516,114640.0,114630.0,0.72223653]
[1759194591693,0.93973516,114640.0,114630.0,0.73223653]
[1759194591992,0.12417516,114640.0,114630.0,0.73523653]
[1759194592185,0.94013516,114640.0,114630.0,0.73523653]
[1759194592382,0.12417516,114640.0,114630.0,0.73523653]
[1759194593895,0.12417516,114640.0,114630.0,0.4640035]
[1759194594193,0.21134076,114640.0,114630.0,0.73523653]
[1759194594788,0.46276361,114640.0,114630.0,0.73523653]
[1759194595104,0.19153058,114640.0,114630.0,0.73523653]
[1759194595288,0.4825878,114640.0,114630.0,0.73523653]
[1759194595481,0.4825878,114640.0,114630.0,0.73523623]
[1759194595688,0.4825878,114640.0,114630.0,0.37683]
[1759194595888,1.2984678,114640.0,114630.0,0.73523623]
[1759194596291,1.2984678,114640.0,114630.0,0.64806303]
[1759194596988,1.94987664,114640.0,114630.0,0.37683]
[1759194597292,1.96964933,114640.0,114630.0,0.37683]
[1759194597891,1.96964933,114640.0,114630.0,0.01603]
[1759194598698,1.15376933,114640.0,114630.0,0.01603]
[1759194598890,1.96960933,114640.0,114630.0,0.01603]
[1759194599693,1.15376933,114640.0,114630.0,0.01603]
[1759194599998,1.96960933,114640.0,114630.0,0.01603]
[1759194600395,1.15376933,114640.0,114630.0,0.01603]
[1759194600595,1.96960933,114640.0,114630.0,0.01603]
[1759194600800,1.96956933,114640.0,114630.0,0.01603]
[1759194601002,1.15376933,114640.0,114630.0,0.01603]
[1759194601397,1.96956933,114640.0,114630.0,0.01603]
[1759194602401,1.15376933,114640.0,114630.0,0.01603]
[1759194602602,1.96956933,114640.0,114630.0,0.01603]
[1759194602803,1.96952933,114640.0,114630.0,0.01603]
[1759194603805,1.15376933,114640.0,114630.0,0.01603]
[1759194604103,1.96948933,114640.0,114630.0,0.01603]
[1759194604504,2.33028933,114640.0,114630.0,0.01603]
[1759194604802,2.60152236,114640.0,114630.0,0.01603]
[1759194605304,2.33028933,114640.0,114630.0,0.01603]
[1759194607297,2.60152236,114640.0,114630.0,0.01603]
[1759194607801,2.33028933,114640.0,114630.0,0.01603]
[1759194607997,2.60152236,114640.0,114630.0,0.01603]
[1759194609798,0.66417686,114620.0,114610.0,0.3608]
[1759194610000,1.47981686,114620.0,114610.0,0.3608]
[1759194610898,0.66417686,114620.0,114610.0,0.3608]
[1759194611099,1.47981686,114620.0,114610.0,0.3678]
[1759194611402,0.95707664,114620.0,114610.0,0.0292]
[1759194611598,1.4995427,114620.0,114610.0,0.0292]
[1759194611797,0.6839427,114620.0,114610.0,0.0292]
[1759194612200,1.4995427,114620.0,114610.0,0.0292]
[1759194612900,1.4995427,114620.0,114610.0,0.0222]
[1759194613106,0.7049427,114620.0,114610.0,0.0222]
[1759194613397,1.5205427,114620.0,114610.0,0.0222]
[1759194613803,0.7049427,114620.0,114610.0,0.0222]
[1759194614305,1.52932623,114620.0,114610.0,0.0222]
[1759194617600,0.01306,114610.0,114600.0,0.74176853]
[1759194617802,0.39392193,114610.0,114600.0,0.4705365]
[1759194618002,0.1226889,114610.0,114600.0,0.4705365]
[1759194618306,0.41372187,114610.0,114600.0,0.4705365]
[1759194618507,0.41372187,114610.0,114600.0,0.02254]
[1759194619300,0.42072187,114610.0,114600.0,0.02254]
[1759194619505,0.43372187,114610.0,114600.0,0.02254]
[1759194620105,0.1237865,114600.0,114590.0,0.4705896]
[1759194620306,1.48169256,114600.0,114590.0,0.4705896]
[1759194620604,1.50148879,114600.0,114590.0,0.74182263]
[1759194621111,1.50148879,114600.0,114590.0,0.4705896]
[1759194622013,1.57161763,114600.0,114590.0,0.4705896]
[1759194622312,1.57561763,114600.0,114590.0,0.4705896]
[1759194622608,1.58261763,114600.0,114590.0,0.4705896]
[1759194623103,1.58261763,114600.0,114590.0,0.4479996]
[1759194623413,1.58253763,114600.0,114590.0,0.4705896]
[1759194624012,0.76717763,114600.0,114590.0,0.4705896]
[1759194624212,1.58253763,114600.0,114590.0,0.4705896]
[1759194624612,1.58253763,114600.0,114590.0,0.1097896]